bitfinex-derivatives/quotes_BTCF0:USTF0_20260315
["timestamp","ask_amount","ask_price","bid_price","bid_amount"]
[1773564820441,0.10448775,71655.0,71645.0,0.0014]
[1773564820641,0.10448775,71655.0,71646.0,0.0014]
[1773564821044,0.10448775,71655.0,71643.0,0.023267]
[1773564821247,0.10448775,71655.0,71644.0,0.0014]
[1773564821546,0.10448775,71655.0,71645.0,0.0014]
[1773564821736,0.10448775,71655.0,71643.0,0.023267]
[1773564822135,0.10448775,71655.0,71644.0,0.0014]
[1773564822545,0.10448775,71655.0,71643.0,0.023267]
[1773564822546,0.10448775,71655.0,71645.0,0.0014]
[1773564822946,0.10448775,71655.0,71643.0,0.023267]
[1773564823146,0.10448775,71655.0,71644.0,0.0014]
[1773564823445,0.10448775,71655.0,71645.0,0.0014]
[1773564823937,0.10448775,71655.0,71643.0,0.023267]
[1773564824244,0.10448775,71655.0,71646.0,0.0014]
[1773564824454,0.10448775,71655.0,71643.0,0.023267]
[1773564824639,0.10448775,71655.0,71646.0,0.0014]
[1773564825945,0.41764977,71659.0,71634.0,0.07508768]
[1773564826240,0.041863,71651.0,71638.0,0.04187]
[1773564829548,0.041863,71651.0,71639.0,0.0014]
[1773564830650,0.041864,71650.0,71640.0,0.0014]
[1773564831552,0.041864,71650.0,71641.0,0.0014]
[1773564833152,0.041864,71650.0,71642.0,0.0014]
[1773564833849,0.041864,71649.0,71643.0,0.0014]
[1773564834052,0.041864,71649.0,71636.0,0.041871]
[1773564834053,0.041864,71649.0,71640.0,0.0014]
[1773564834241,0.041865,71648.0,71640.0,0.0014]
[1773564834643,0.041865,71648.0,71642.0,0.001]
[1773564835053,0.0638908,71648.0,71634.0,0.01098]
[1773564835346,0.0638908,71648.0,71634.0,0.01238]
[1773564835942,0.041867,71645.0,71634.0,0.01098]
[1773564837351,0.1057578,71645.0,71634.0,0.01098]
[1773564837747,0.1057578,71645.0,71633.0,0.0014]
[1773564838451,0.1057578,71645.0,71631.0,0.041874]
[1773564838658,0.1057578,71645.0,71632.0,0.0014]
[1773564839655,0.1057578,71645.0,71632.0,0.043274]
[1773564841357,0.1057578,71645.0,71633.0,0.0014]
[1773564841657,0.1057578,71645.0,71634.0,0.0014]
[1773564841861,0.0638908,71645.0,71635.0,0.041872]
[1773564842162,0.0014,71653.0,71642.0,0.041868]
[1773564842352,0.041862,71654.0,71641.0,0.0014]
[1773564842959,0.0014,71656.0,71641.0,0.0014]
[1773564844053,0.041862,71654.0,71642.0,0.041868]
[1773564847060,0.04326,71656.0,71642.0,0.041868]
[1773564847759,0.0014,71656.0,71645.0,0.041866]
[1773564848750,0.0014,71656.0,71643.0,0.041867]
[1773564848951,0.04326,71656.0,71643.0,0.041867]
[1773564849151,0.0638908,71654.0,71643.0,0.043267]
[1773564849460,0.0638908,71654.0,71643.0,0.02112546]
[1773564850051,0.0638908,71654.0,71643.0,0.01972546]
[1773564850252,0.0638908,71654.0,71644.0,0.0014]
[1773564851765,0.1057518,71654.0,71644.0,0.0014]
[1773564860068,0.041862,71653.0,71644.0,0.0014]
[1773564870176,0.041862,71653.0,71643.0,0.0014]
[1773564872177,0.41764977,71651.0,71643.0,0.0014]
[1773564872381,0.41764977,71651.0,71641.0,0.019868]
[1773564872579,0.47463255,71651.0,71642.0,0.0014]
[1773564873276,0.41764977,71651.0,71642.0,0.0014]
[1773564873465,0.41764977,71652.0,71642.0,0.0014]
[1773564873869,0.41764977,71652.0,71641.0,0.041868]
[1773564874074,0.41764977,71652.0,71642.0,0.0014]
[1773564880088,0.41764977,71652.0,71643.0,0.0014]
[1773564881285,0.41764977,71651.0,71643.0,0.0014]
[1773564881985,0.09884478,71653.0,71643.0,0.0014]
[1773564883084,0.05698278,71652.0,71643.0,0.0014]
[1773564884691,0.041862,71653.0,71643.0,0.0014]
[1773564887593,0.05698278,71652.0,71643.0,0.0014]
[1773564896004,0.05698278,71652.0,71636.0,0.041871]
[1773564896398,0.0595297,71649.0,71632.0,0.01098]
[1773564896598,0.0595297,71649.0,71633.0,0.0014]
[1773564897105,0.0595297,71649.0,71634.0,0.0014]
[1773564897500,0.041866,71647.0,71635.0,0.043272]
[1773564899700,0.041866,71647.0,71636.0,0.0014]
[1773564900699,0.41764977,71657.0,71637.0,0.05840998]
[1773564900901,0.041856,71663.0,71651.0,0.041862]
[1773564901202,0.041857,71662.0,71651.0,0.0014]
[1773564903305,0.041857,71662.0,71652.0,0.0014]
[1773564904399,0.041856,71663.0,71652.0,0.0014]
[1773564905001,0.041857,71662.0,71652.0,0.0014]
[1773564907609,0.041857,71661.0,71652.0,0.0014]
[1773564911013,0.041857,71661.0,71653.0,0.0014]
[1773564926414,0.041857,71661.0,71654.0,0.0014]
[1773564927119,0.041857,71661.0,71655.0,0.0014]
[1773564929919,0.041857,71661.0,71649.0,0.024664]
[1773564930226,0.041857,71661.0,71650.0,0.0014]
[1773564932724,0.041857,71661.0,71651.0,0.0014]
[1773564933632,0.041856,71663.0,71651.0,0.0014]
[1773564934826,0.041856,71663.0,71652.0,0.0014]
[1773564935833,0.10053814,71663.0,71650.0,0.032263]
[1773564936134,0.10053814,71663.0,71653.0,0.0014]
[1773564936536,0.10053814,71663.0,71650.0,0.032263]
[1773564936836,0.10053814,71663.0,71654.0,0.0014]
[1773564938436,0.10053814,71663.0,71650.0,0.032263]
[1773564938635,0.10053814,71663.0,71651.0,0.0014]
[1773564939238,0.05868214,71663.0,71651.0,0.043262]
[1773564939535,0.041855,71665.0,71651.0,0.043262]
[1773564940833,0.041855,71665.0,71652.0,0.041862]
[1773564941029,0.41794843,71677.0,71664.0,0.041855]
[1773564941234,0.041847,71679.0,71666.0,0.041854]
[1773564941539,0.041847,71679.0,71667.0,0.0014]
[1773564942239,0.07275916,71685.0,71667.0,0.0014]
[1773564942440,0.041847,71679.0,71668.0,0.0014]
[1773564944437,0.041845,71682.0,71668.0,0.043253]
[1773564945541,0.041846,71681.0,71668.0,0.043253]
[1773564947442,0.041846,71681.0,71669.0,0.05701718]
[1773564947642,0.041846,71681.0,71668.0,0.043253]
[1773564948731,0.041846,71681.0,71668.0,0.041853]
[1773564948931,0.05868214,71680.0,71668.0,0.041853]
[1773564949138,0.05868214,71679.0,71669.0,0.0014]
[1773564949341,0.05868214,71679.0,71670.0,0.0014]
[1773564950139,0.05868214,71679.0,71671.0,0.0014]
[1773564951533,0.041846,71680.0,71671.0,0.0014]
[1773564956848,1e-06,71686.0,71672.0,0.0014]
[1773564957050,1e-06,71686.0,71670.0,0.08768373]
[1773564957245,1e-06,71686.0,71675.0,0.041848]
[1773564957845,1e-06,71686.0,71676.0,0.0014]
[1773564959149,1e-06,71686.0,71677.0,0.041848]
[1773564959850,1e-06,71686.0,71679.0,0.041846]
[1773564960248,0.041839,71693.0,71676.0,0.05835291]
[1773564960457,0.041839,71693.0,71681.0,0.041845]
[1773564960756,0.05901746,71699.0,71676.0,0.05835291]
[1773564961059,0.041835,71700.0,71681.0,0.05695291]
[1773564961353,0.001,71693.0,71685.0,0.09879491]
[1773564961549,0.001,71693.0,71686.0,0.0014]
[1773564961753,0.02195,71697.0,71686.0,0.0014]
[1773564963956,0.05901746,71704.0,71686.0,0.043242]
[1773564964950,0.041834,71700.0,71686.0,0.043242]
[1773564965352,0.01097,71697.0,71686.0,0.043242]
[1773564965560,0.01097,71697.0,71687.0,0.0014]
[1773564970754,0.06998746,71697.0,71675.0,0.01097]
[1773564970969,0.05901746,71696.0,71676.0,0.0014]
[1773564971171,0.01097,71697.0,71677.0,0.0014]
[1773564971172,0.041841,71688.0,71677.0,0.0014]
[1773564971763,0.05901746,71687.0,71675.0,0.01237]
[1773564971956,0.041843,71686.0,71675.0,0.01237]
[1773564972162,0.05901746,71685.0,71675.0,0.01237]
[1773564973264,0.05901746,71685.0,71676.0,0.0014]
[1773564979071,0.041843,71686.0,71676.0,0.0014]
[1773564981370,0.10086046,71686.0,71676.0,0.0014]
[1773564983770,0.041843,71686.0,71676.0,0.0014]
[1773564983968,0.041842,71688.0,71676.0,0.0014]
[1773564988266,0.04184,71690.0,71677.0,0.041847]
[1773564988776,0.04184,71690.0,71677.0,0.027847]
[1773564989864,0.04184,71690.0,71678.0,0.041847]
[1773564993785,0.041839,71692.0,71678.0,0.041847]
[1773564993987,0.041839,71692.0,71679.0,0.041846]
[1773564995984,0.02195,71693.0,71676.0,0.0014]
[1773564996388,0.02195,71693.0,71677.0,0.0014]
[1773564996585,0.02195,71693.0,71672.0,0.04632551]
[1773564996786,0.02195,71693.0,71673.0,0.0014]
[1773564997087,0.02195,71693.0,71680.0,0.041845]
[1773564997288,0.02195,71693.0,71681.0,0.0014]
[1773564998089,0.07948059,71693.0,71681.0,0.0014]
[1773564998291,0.05753059,71692.0,71681.0,0.0014]
[1773564999088,0.09936959,71692.0,71681.0,0.0014]
[1773564999892,0.05753059,71691.0,71680.0,0.043245]
[1773565000881,0.05753059,71691.0,71680.0,0.043246]
[1773565003790,0.05753059,71691.0,71680.0,0.041846]
[1773565004097,0.05753059,71691.0,71680.0,0.024846]
[1773565007295,0.04184,71690.0,71679.0,0.0014]
[1773565007497,0.05753059,71689.0,71679.0,0.0014]
[1773565012003,0.05753059,71689.0,71677.0,0.030647]
[1773565012901,0.09805586,71688.0,71676.0,0.0014]
[1773565013102,0.05621486,71688.0,71677.0,0.041848]
[1773565019306,0.04184,71690.0,71677.0,0.041848]
[1773565019510,0.04184,71690.0,71677.0,0.024848]
[1773565019907,0.04184,71690.0,71678.0,0.041847]
[1773565022010,0.05621486,71689.0,71678.0,0.041847]
[1773565024412,0.04184,71690.0,71678.0,0.041847]
[1773565027412,0.04184,71690.0,71678.0,0.025847]
[1773565028309,0.0014,71691.0,71676.0,0.0014]
[1773565028508,0.0014,71691.0,71680.0,0.041846]
[1773565028707,0.041839,71692.0,71680.0,0.041846]
[1773565033713,0.02195,71693.0,71685.0,0.041843]
[1773565033910,0.02195,71693.0,71683.0,0.041844]
[1773565034116,0.0014,71694.0,71683.0,0.041844]
[1773565034516,0.0014,71695.0,71683.0,0.041844]
[1773565034721,0.043237,71695.0,71681.0,0.041845]
[1773565034917,0.043237,71695.0,71682.0,0.041844]
[1773565035417,0.01097,71693.0,71682.0,0.041844]
[1773565036907,0.01097,71693.0,71683.0,0.041844]
[1773565039017,0.01097,71693.0,71684.0,0.041843]
[1773565040712,0.01097,71693.0,71682.0,0.043245]
[1773565042621,0.01097,71693.0,71682.0,0.035645]
[1773565043119,0.01097,71693.0,71683.0,0.041844]
[1773565048230,0.041836,71697.0,71685.0,0.05361326]
[1773565049127,0.01865736,71691.0,71685.0,0.05361326]
[1773565049426,0.00399417,71691.0,71685.0,0.05361326]
[1773565049728,0.22309591,71705.0,71685.0,0.05361326]
[1773565049931,0.041832,71704.0,71690.0,0.04184]
[1773565050129,0.0014,71705.0,71690.0,0.04184]
[1773565050130,0.041833,71703.0,71690.0,0.04184]
[1773565050437,0.041833,71703.0,71690.0,0.03084]
[1773565051634,0.041833,71703.0,71691.0,0.09545226]
[1773565052224,0.052803,71703.0,71691.0,0.09545226]
[1773565052532,0.01097,71703.0,71691.0,0.05361326]
[1773565052726,0.01097,71703.0,71690.0,0.05361326]
[1773565054327,0.04183,71707.0,71694.0,0.041837]
[1773565054532,0.04183,71707.0,71695.0,0.05501326]
[1773565054720,0.0014,71708.0,71696.0,0.05361326]
[1773565054923,0.041829,71709.0,71696.0,0.05361326]
[1773565055531,0.041829,71710.0,71698.0,0.05361326]
[1773565055932,0.01097,71708.0,71698.0,0.05361326]
[1773565056933,0.0528,71708.0,71698.0,0.05361326]
[1773565058035,0.05068194,71707.0,71685.0,0.033213]
[1773565058234,0.05068194,71706.0,71686.0,0.0014]
[1773565058436,0.05068194,71704.0,71686.0,0.0014]
[1773565058931,0.041835,71700.0,71686.0,0.041842]
[1773565059137,0.041835,71700.0,71687.0,0.0014]
[1773565059538,0.041835,71699.0,71686.0,0.041842]
[1773565060943,0.041835,71699.0,71687.0,0.0014]
[1773565061243,0.041835,71699.0,71688.0,0.0014]
[1773565061738,0.041836,71697.0,71688.0,0.0014]
[1773565062244,0.041835,71699.0,71688.0,0.0014]
[1773565064048,0.00191286,71694.0,71688.0,0.0014]
[1773565065056,0.00191286,71691.0,71688.0,0.0014]
[1773565065758,0.00191286,71691.0,71686.0,0.0014]
[1773565065956,0.00191286,71689.0,71686.0,0.0014]
[1773565066253,0.00634857,71697.0,71686.0,0.0014]
[1773565073460,0.00634857,71697.0,71687.0,0.0014]
[1773565075662,0.04466651,71704.0,71687.0,0.0014]
[1773565075963,0.041836,71698.0,71687.0,0.0014]
[1773565077566,0.041837,71696.0,71686.0,0.0014]
[1773565078465,0.041838,71694.0,71685.0,0.0014]
[1773565079460,0.041837,71696.0,71682.0,0.041845]
[1773565079662,0.05475059,71695.0,71683.0,0.0014]
[1773565079856,0.05475059,71695.0,71673.0,0.05394138]
[1773565080062,0.05475059,71698.0,71678.0,0.041847]
[1773565080262,0.04184,71690.0,71678.0,0.0014]
[1773565080462,0.05475059,71689.0,71672.0,0.0014]
[1773565080663,0.05475059,71689.0,71664.0,0.05394138]
[1773565080664,0.05475059,71689.0,71670.0,0.041852]
[1773565080864,0.05475059,71689.0,71671.0,0.0014]
[1773565081061,0.00675059,71689.0,71671.0,0.0014]
[1773565081968,0.041844,71684.0,71671.0,0.0014]
[1773565082374,0.041845,71683.0,71671.0,0.0014]
[1773565084673,0.052815,71683.0,71671.0,0.0014]
[1773565086979,0.052815,71683.0,71671.0,0.043251]
[1773565100682,0.00191327,71677.0,71671.0,0.043251]
[1773565101690,0.00191327,71674.0,71671.0,0.0014]
[1773565102079,2.7e-07,71674.0,71671.0,0.0014]
[1773565102284,0.052815,71683.0,71671.0,0.0014]
[1773565110681,0.47066594,71683.0,71671.0,0.0014]
[1773565110889,0.14113996,71681.0,71668.0,0.02917733]
[1773565111082,0.041848,71677.0,71668.0,0.02917733]
[1773565111494,0.041849,71676.0,71668.0,0.02917733]
[1773565111695,0.041849,71675.0,71668.0,0.02917733]
[1773565115292,0.041849,71675.0,71664.0,0.0014]
[1773565118802,0.0014,71679.0,71658.0,0.01098]
[1773565118803,0.04185,71674.0,71660.0,0.0014]
[1773565119603,0.04185,71674.0,71662.0,0.041856]
[1773565120896,0.04185,71674.0,71662.0,0.043256]
[1773565121404,0.04185,71674.0,71662.0,0.041856]
[1773565122207,0.04185,71674.0,71661.0,0.0014]
[1773565122908,0.04185,71673.0,71660.0,0.041857]
[1773565123608,0.04185,71673.0,71660.0,0.043257]
[1773565124006,0.04185,71673.0,71660.0,0.041857]
[1773565124210,0.04185,71673.0,71661.0,0.0014]
[1773565124604,0.04185,71673.0,71661.0,0.043257]
[1773565125010,0.04185,71673.0,71661.0,0.041857]
[1773565125210,0.04185,71673.0,71661.0,0.043257]
[1773565125413,0.04185,71673.0,71661.0,0.041857]
[1773565125715,0.04185,71673.0,71661.0,0.043257]
[1773565126414,0.04185,71673.0,71661.0,0.041857]
[1773565126617,0.04185,71673.0,71661.0,0.043257]
[1773565127917,0.04185,71673.0,71661.0,0.041857]
[1773565128120,0.00244182,71668.0,71661.0,0.043257]
[1773565128912,0.00244182,71668.0,71661.0,0.041857]
[1773565129220,0.00244182,71668.0,71661.0,0.043257]
[1773565129915,0.00244182,71668.0,71661.0,0.041857]
[1773565130116,0.00244182,71668.0,71661.0,0.043257]
[1773565130925,0.00244182,71668.0,71661.0,0.041857]
[1773565131222,0.00244182,71668.0,71661.0,0.043257]
[1773565131410,0.00244182,71668.0,71661.0,0.041857]
[1773565131609,0.00244182,71668.0,71661.0,0.043257]
[1773565131915,0.00244182,71668.0,71661.0,0.041857]
[1773565132114,0.00244182,71668.0,71661.0,0.043257]
[1773565132319,0.00244182,71668.0,71661.0,0.09676934]
[1773565135921,0.00244182,71668.0,71661.0,0.09536934]
[1773565136122,0.00244182,71668.0,71661.0,0.09676934]
[1773565136922,0.00244182,71668.0,71661.0,0.09536934]
[1773565137124,0.00244182,71668.0,71661.0,0.09676934]
[1773565137326,0.0014,71679.0,71663.0,0.05351234]
[1773565137529,0.0014,71680.0,71665.0,0.05351234]
[1773565137826,0.0014,71681.0,71665.0,0.05351234]
[1773565138726,0.02195,71682.0,71666.0,0.05351234]
[1773565139326,0.041845,71681.0,71666.0,0.05351234]
[1773565139827,0.041844,71683.0,71665.0,0.05351234]
[1773565140016,0.041843,71685.0,71673.0,0.04185]
[1773565140217,0.0014,71688.0,71673.0,0.05351234]
[1773565140412,0.41785094,71693.0,71677.0,0.05351234]
[1773565140619,0.0014,71692.0,71677.0,0.05351234]
[1773565140827,0.041839,71693.0,71681.0,0.05351234]
[1773565141225,0.041838,71695.0,71685.0,0.05351234]
[1773565142026,0.001,71692.0,71685.0,0.05351234]
[1773565142221,0.041838,71694.0,71685.0,0.05351234]
[1773565143514,0.052808,71694.0,71685.0,0.05351234]
[1773565148728,0.01097,71694.0,71678.0,0.041847]
[1773565148931,0.04184,71691.0,71679.0,0.0014]
[1773565149225,0.05160439,71689.0,71674.0,0.01097]
[1773565149417,0.05160439,71683.0,71667.0,0.0014]
[1773565149623,0.041848,71677.0,71667.0,0.0014]
[1773565149824,0.0876624,71680.0,71667.0,0.0014]
[1773565150827,0.0014,71682.0,71667.0,0.0014]
[1773565151934,0.041847,71679.0,71667.0,0.0014]
[1773565155736,0.0014,71682.0,71667.0,0.0014]
[1773565156030,0.05160439,71720.0,71699.0,0.05351234]
[1773565156221,0.05160439,71725.0,71701.0,0.05351234]
[1773565156426,0.05160439,71725.0,71717.0,0.041824]
[1773565156626,0.05160439,71725.0,71716.0,0.0014]
[1773565156931,0.05160439,71725.0,71717.0,0.0014]
[1773565157132,0.05160439,71725.0,71716.0,0.0014]
[1773565157337,0.05160439,71725.0,71719.0,0.041823]
[1773565157533,0.06257439,71725.0,71719.0,0.041823]
[1773565160235,0.01097,71725.0,71719.0,0.041823]
[1773565164241,0.01097,71725.0,71719.0,0.029823]
[1773565166236,0.01097,71725.0,71716.0,0.041824]
[1773565166438,0.01097,71725.0,71717.0,0.0014]
[1773565167442,0.01097,71725.0,71717.0,0.043224]
[1773565167942,0.01097,71725.0,71710.0,0.0876624]
[1773565168140,0.0653898,71724.0,71714.0,0.041826]
[1773565168340,0.0653898,71724.0,71716.0,0.041825]
[1773565168738,0.0653898,71724.0,71715.0,0.0014]
[1773565169242,0.0653898,71724.0,71715.0,0.043225]
[1773565169444,0.0653898,71724.0,71715.0,0.041825]
[1773565169641,0.0653898,71724.0,71715.0,0.043225]
[1773565170439,0.00069705,71731.0,71724.0,0.04182]
[1773565172046,0.01165705,71731.0,71724.0,0.02982]
[1773565179352,0.01165705,71731.0,71713.0,0.01097]
[1773565179353,0.0653898,71725.0,71713.0,0.01097]
[1773565179653,0.0653898,71725.0,71713.0,0.01237]
[1773565180149,0.0653898,71725.0,71713.0,0.01097]
[1773565180947,0.0653898,71725.0,71713.0,0.052796]
[1773565181446,0.0653898,71725.0,71714.0,0.041826]
[1773565182647,0.0653898,71725.0,71704.0,0.01097]
[1773565182648,0.0653898,71759.0,71727.0,0.06694198]
[1773565182848,0.0653898,71759.0,71745.0,0.041808]
[1773565183048,0.0653898,71757.0,71744.0,0.041808]
[1773565183841,0.0653898,71757.0,71737.0,0.0014]
[1773565184043,0.0653898,71762.0,71745.0,0.041808]
[1773565184248,0.0667898,71761.0,71745.0,0.041808]
[1773565184449,0.0667898,71760.0,71743.0,0.041809]
[1773565184653,0.0014,71759.0,71743.0,0.016809]
[1773565184951,0.07781267,71774.0,71740.0,0.08751353]
[1773565184952,0.0653898,71771.0,71744.0,0.06834198]
[1773565185154,0.0653898,71771.0,71749.0,0.08751353]
[1773565185558,0.0653898,71771.0,71753.0,0.041803]
[1773565185757,0.0653898,71771.0,71755.0,0.041802]
[1773565186053,0.0653898,71771.0,71757.0,0.041801]
[1773565186248,0.0653898,71771.0,71752.0,0.0014]
[1773565186454,0.0653898,71771.0,71756.0,0.041801]
[1773565186653,0.0014,71770.0,71757.0,0.0418]
[1773565187645,0.0014,71770.0,71752.0,0.06834198]
[1773565187646,0.0014,71770.0,71760.0,0.041799]
[1773565188053,0.0014,71770.0,71764.0,0.041797]
[1773565188250,0.0014,71772.0,71763.0,0.041797]
[1773565188658,0.0014,71772.0,71755.0,0.06694198]
[1773565189153,0.0653898,71777.0,71753.0,0.06694198]
[1773565189346,0.0653898,71775.0,71754.0,0.06834198]
[1773565189551,0.0014,71776.0,71752.0,0.01096]
[1773565189552,0.0014,71774.0,71763.0,0.041797]
[1773565189753,0.01096,71770.0,71763.0,0.041797]
[1773565190158,0.01096,71770.0,71764.0,0.041796]
[1773565192354,0.01096,71770.0,71764.0,0.033796]
[1773565192958,0.0014,71774.0,71764.0,0.033796]
[1773565195464,0.0014,71774.0,71768.0,0.01096]
[1773565196056,0.01096,71770.0,71768.0,0.01096]
[1773565197760,0.0014,71780.0,71761.0,0.06942141]
[1773565198470,0.0014,71780.0,71766.0,0.041795]
[1773565199568,0.0014,71780.0,71766.0,0.052755]
[1773565200265,0.0014,71780.0,71766.0,0.034755]
[1773565201355,0.0014,71780.0,71766.0,0.01096]
[1773565201559,0.06954476,71780.0,71766.0,0.01096]
[1773565201761,0.00069656,71781.0,71768.0,0.06942141]
[1773565202070,0.05,71800.0,71772.0,0.06942141]
[1773565202363,0.06954476,71789.0,71766.0,0.07082141]
[1773565202574,0.06954476,71789.0,71765.0,0.08474889]
[1773565202575,0.0014,71788.0,71776.0,0.041789]
[1773565202779,0.0014,71787.0,71776.0,0.041789]
[1773565202959,0.0014,71786.0,71776.0,0.041789]
[1773565203159,0.0014,71788.0,71776.0,0.041789]
[1773565204156,0.01096,71799.0,71784.0,0.041785]
[1773565204157,0.041777,71799.0,71784.0,0.041785]
[1773565204363,0.041777,71799.0,71772.0,0.01096]
[1773565204364,0.05,71800.0,71781.0,0.06942141]
[1773565204559,0.05,71800.0,71787.0,0.041783]
[1773565204864,0.05,71800.0,71787.0,0.11120441]
[1773565205066,0.05,71800.0,71783.0,0.06942141]
[1773565205262,0.06954476,71792.0,71774.0,0.041791]
[1773565205465,0.08739858,71793.0,71776.0,0.04179]
[1773565205466,0.041782,71790.0,71776.0,0.04179]
[1773565205659,0.15694334,71786.0,71772.0,0.01096]
[1773565205857,0.08739858,71782.0,71772.0,0.01096]
[1773565206062,0.08739858,71782.0,71762.0,0.06942141]
[1773565206063,0.01096,71781.0,71762.0,0.06942141]
[1773565206472,0.01096,71781.0,71762.0,0.07082141]
[1773565206667,0.08050476,71781.0,71762.0,0.06942141]
[1773565206973,0.04179,71776.0,71755.0,0.06942141]
[1773565207176,0.0014,71776.0,71762.0,0.041798]
[1773565207375,0.01096,71775.0,71762.0,0.041798]
[1773565208374,0.0014,71776.0,71762.0,0.041798]
[1773565208567,0.01096,71775.0,71762.0,0.041798]
[1773565209368,0.01096,71775.0,71760.0,0.0014]
[1773565209369,0.01096,71775.0,71767.0,0.01096]
[1773565209569,0.01096,71775.0,71758.0,0.0014]
[1773565209770,0.0014,71774.0,71757.0,0.07082141]
[1773565210075,0.01096,71770.0,71761.0,0.041798]
[1773565213076,0.0014,71772.0,71757.0,0.07082141]
[1773565213375,0.01096,71771.0,71757.0,0.07082141]
[1773565213973,0.01096,71771.0,71761.0,0.041798]
[1773565214466,0.02192,71771.0,71761.0,0.041798]
[1773565214670,0.04178,71794.0,71778.0,0.041789]
[1773565214975,0.05,71800.0,71778.0,0.041789]
[1773565214976,0.04318,71793.0,71778.0,0.11121041]
[1773565215167,0.041781,71791.0,71778.0,0.06942141]
[1773565215367,0.0014,71790.0,71778.0,0.06942141]
[1773565215676,0.0014,71791.0,71782.0,0.041786]
[1773565215869,0.0014,71791.0,71782.0,0.11120741]
[1773565216069,0.041778,71798.0,71784.0,0.041785]
[1773565216269,0.0014,71797.0,71783.0,0.05730641]
[1773565216475,0.0014,71797.0,71790.0,0.01096]
[1773565216868,0.001,71794.0,71790.0,0.01096]
[1773565217069,0.001,71794.0,71776.0,0.0014]
[1773565217070,0.01096,71792.0,71779.0,0.06942141]
[1773565217271,0.01096,71792.0,71776.0,0.0014]
[1773565217969,0.01096,71792.0,71779.0,0.041788]
[1773565218774,0.01096,71792.0,71780.0,0.041787]
[1773565219171,0.01096,71792.0,71776.0,0.0014]
[1773565219374,0.01096,71792.0,71781.0,0.041787]
[1773565219873,0.041779,71795.0,71781.0,0.041787]
[1773565220077,0.0014,71794.0,71781.0,0.11120841]
[1773565220277,0.0014,71794.0,71782.0,0.041786]
[1773565220678,0.0014,71794.0,71782.0,0.019786]
[1773565220870,0.05,71800.0,71782.0,0.019786]
[1773565221067,0.041779,71795.0,71781.0,0.11120841]
[1773565221272,0.05,71800.0,71776.0,0.0014]
[1773565221273,0.05,71800.0,71782.0,0.06942141]
[1773565221472,1e-06,71800.0,71776.0,0.0014]
[1773565221671,1e-06,71800.0,71784.0,0.041785]
[1773565221872,0.06485432,71799.0,71784.0,0.041785]
[1773565222072,0.041777,71800.0,71784.0,0.041785]
[1773565222272,1e-06,71800.0,71786.0,0.041784]
[1773565222471,1e-06,71800.0,71788.0,0.041783]
[1773565222674,1e-06,71800.0,71788.0,0.11193513]
[1773565223384,1e-06,71800.0,71793.0,0.01096]
[1773565224175,0.01096,71795.0,71793.0,0.01096]
[1773565224582,1e-06,71800.0,71793.0,0.01096]
[1773565224780,0.0014,71797.0,71793.0,0.01096]
[1773565224986,0.0014,71796.0,71788.0,0.07015213]
[1773565225381,0.041782,71790.0,71776.0,0.0014]
[1773565225589,0.041786,71784.0,71769.0,0.11194613]
[1773565225782,0.41668643,71808.0,71762.0,0.0014]
[1773565225783,0.51946466,71819.0,71763.0,0.07015213]
[1773565225984,0.00069608,71831.0,71790.0,0.0874268]
[1773565226288,8e-08,71831.0,71824.0,0.041761]
[1773565226488,8e-08,71831.0,71795.0,0.041779]
[1773565226489,8e-08,71831.0,71821.0,0.041763]
[1773565226688,0.00140008,71831.0,71819.0,0.041765]
[1773565226888,8e-08,71831.0,71820.0,0.041764]
[1773565227089,0.00100008,71831.0,71820.0,0.041764]
[1773565227289,0.00100008,71831.0,71819.0,0.0014]
[1773565227484,0.04176,71827.0,71816.0,0.0014]
[1773565227689,0.07206635,71831.0,71816.0,0.0014]
[1773565227993,0.041756,71835.0,71820.0,0.05290699]
[1773565228188,0.041756,71835.0,71821.0,0.0014]
[1773565228382,0.001,71831.0,71821.0,0.0014]
[1773565228779,0.08338765,71830.0,71803.0,0.041774]
[1773565228978,0.041765,71819.0,71804.0,0.0014]
[1773565229181,0.041765,71820.0,71805.0,0.0014]
[1773565229389,0.041765,71820.0,71803.0,0.041774]
[1773565229390,0.041765,71820.0,71806.0,0.0014]
[1773565229992,0.041763,71822.0,71807.0,0.041772]
[1773565230589,0.041765,71820.0,71806.0,0.0014]
[1773565230983,0.041764,71822.0,71807.0,0.041772]
[1773565231386,0.09446202,71830.0,71806.0,0.0014]
[1773565231387,0.041765,71820.0,71806.0,0.0014]
[1773565232888,0.041763,71823.0,71807.0,0.041772]
[1773565233083,0.01095,71830.0,71810.0,0.04177]
[1773565233290,0.0014,71829.0,71810.0,0.04177]
[1773565233494,0.0014,71829.0,71806.0,0.0014]
[1773565233495,0.041762,71825.0,71809.0,0.04177]
[1773565233792,0.041762,71825.0,71808.0,0.041771]
[1773565233983,0.041759,71829.0,71806.0,0.0014]
[1773565234190,0.041759,71829.0,71814.0,0.041768]
[1773565234391,0.041759,71829.0,71815.0,0.0014]
[1773565234889,0.09235053,71830.0,71815.0,0.0014]
[1773565235698,0.01095,71830.0,71815.0,0.0014]
[1773565237197,0.01095,71830.0,71810.0,0.0014]
[1773565237198,0.08127041,71825.0,71810.0,0.0014]
[1773565237397,0.08127041,71825.0,71811.0,0.0014]
[1773565237798,0.041762,71824.0,71811.0,0.0014]
[1773565237999,0.041762,71824.0,71811.0,0.00247745]
[1773565238897,0.08005249,71826.0,71803.0,0.00302578]
[1773565239088,0.041769,71812.0,71796.0,0.043178]
[1773565239292,0.08005249,71814.0,71796.0,0.0014]
[1773565239492,0.041771,71810.0,71795.0,0.00261806]
[1773565239695,0.08006117,71827.0,71799.0,0.00261806]
[1773565239900,0.041764,71820.0,71806.0,0.00261806]
[1773565240101,0.041764,71820.0,71807.0,0.0014]
[1773565240399,0.041764,71822.0,71807.0,0.00343232]
[1773565240905,0.041764,71822.0,71774.0,0.16593089]